[Event "Haiwan Cup New Star 2019"]
[Site "Shanghai"]
[Date "2019.09.08"]
[Round "5.1"]
[White "Liu, Yan"]
[Black "Gukesh D"]
[Result "1/2-1/2"]
[ECO "D31"]
[WhiteElo "2524"]
[BlackElo "2535"]
[Annotator "ChessBase"]
[PlyCount "59"]
[EventDate "2019.09.04"]
[EventType "tourn"]
[EventCountry "CHN"]
[SourceTitle "playchess.com"]
[Source "ChessBase"]
[SourceQuality "1"]
[TimeControl "5400+30"]

1. d4 {[%emt 0:00:00]} d5 {[%emt 0:00:10]} 2. c4 {[%emt 0:00:14]} e6 {[%emt 0:00:19]} 3. Nf3 {[%emt 0:01:14]} a6 {[%emt 0:00:37]} 4. cxd5 {[%emt 0:03:26]} exd5 {[%emt 0:00:02]} 5. Nc3 {[%emt 0:00:08]} h6 {[%emt 0:01:48]} 6. Bf4 {[%emt 0:04:34]} Nf6 {[%emt 0:00:27]} 7. e3 {[%emt 0:00:39]} Bd6 {[%emt 0:00:25]} 8. Be5 {[%emt 0:01:56]} c6 {[%emt 0:02:44]} 9. Bd3 {[%emt 0:01:37]} O-O {[%emt 0:03:42]} 10. h3 {[%emt 0:09:03]} Bxe5 {[%emt 0:09:48]} 11. Nxe5 {[%emt 0:00:37]} Nbd7 {[%emt 0:03:40]} 12. f4 {[%emt 0:02:39]} c5 {[%emt 0:01:33]} 13. Qf3 {[%emt 0:04:20]} cxd4 {[%emt 0:06:22]} 14. exd4 {[%emt 0:00:11]} b5 {[%emt 0:01:54]} 15. O-O {[%emt 0:09:31]} Bb7 {[%emt 0:06:43]} 16. Kh2 {[%emt 0:08:46]} Nb6 {[%emt 0:06:26]} 17. a3 {[%emt 0:11:47]} Nc8 {[%emt 0:14:07]} 18. Ng4 {[%emt 0:10:28]} Nd6 {[%emt 0:03:38]} 19. Nxf6+ {[%emt 0:00:12]} Qxf6 {[%emt 0:00:08]} 20. Qf2 {[%emt 0:00:20]} Nc4 {[%emt 0:12:55]} 21. Bxc4 {[%emt 0:14:54]} bxc4 {[%emt 0:00:42]} 22. Rae1 {[%emt 0:00:37]} Bc6 {[%emt 0:01:52]} 23. Re5 {[%emt 0:01:51]} Qd6 {[%emt 0:01:00]} 24. Kg1 {[%emt 0:01:24]} Rfe8 {[%emt 0:09:21]} 25. Rfe1 {[%emt 0:01:52]} f6 {[%emt 0:03:48]} 26. Rxe8+ {[%emt 0:00:26]} Rxe8 {[%emt 0:00:55]} 27. Rxe8+ {[%emt 0:00:49]} Bxe8 {[%emt 0:00:02]} 28. f5 {[%emt 0:01:17]} Bf7 {[%emt 0:01:49]} 29. Kh1 {[%emt 0:01:37]} Qb6 {[%emt 0:01:59]} 30. Kg1 {[%emt 0:00:11]} 1/2-1/2

[Event "Haiwan Cup New Star 2019"]
[Site "Shanghai"]
[Date "2019.09.08"]
[Round "5.2"]
[White "Martirosyan, Haik M."]
[Black "Dai, Changren"]
[Result "1/2-1/2"]
[ECO "D31"]
[WhiteElo "2608"]
[BlackElo "2512"]
[Annotator "RC"]
[PlyCount "106"]
[EventDate "2019.09.04"]
[EventType "tourn"]
[EventCountry "CHN"]
[SourceTitle "playchess.com"]
[Source "ChessBase"]
[SourceQuality "1"]
[TimeControl "5400+30"]

1. d4 {[%emt 0:00:00]} d5 {[%emt 0:00:00]} 2. c4 {[%emt 0:00:00]} e6 {[%emt 0:00:00]} 3. Nc3 {[%emt 0:00:00]} Be7 {[%emt 0:00:00]} 4. cxd5 {[%emt 0:00:15]} exd5 {[%emt 0:00:00]} 5. Bf4 {[%emt 0:00:09]} c6 {[%emt 0:00:00]} 6. Qc2 {[%emt 0:00:13]} Nf6 {[%emt 0:00:07]} 7. h3 {[%emt 0:01:02]} g6 {[%emt 0:00:07]} 8. e3 {[%emt 0:00:49]} Bf5 {[%emt 0:00:09]} 9. Qd2 {[%emt 0:00:09]} Nbd7 {[%emt 0:00:30]} 10. Nge2 {[%emt 0:02:33]} O-O {[%emt 0:00:38]} 11. Ng3 {[%emt 0:01:40]} Ne4 {[%emt 0:00:55]} 12. Ngxe4 {[%emt 0:07:13]} Bxe4 {[%emt 0:00:17]} 13. O-O-O {[%emt 0:02:22]} Bf5 {[%emt 0:06:45]} 14. f3 {[%emt 0:02:14]} g5 {[%emt 0:26:31]} 15. Bh2 {[%emt 0:01:46]} b5 {[%emt 0:01:58]} 16. Bd3 {[%emt 0:05:09]} Bg6 {[%emt 0:01:10]} 17. f4 {[%emt 0:07:02]} gxf4 {[%emt 0:03:03]} 18. exf4 {[%emt 0:02:33]} f5 {[%emt 0:01:33]} 19. g4 {[%emt 0:04:15]} Bh4 {[%emt 0:15:59]} 20. Rdg1 {[%emt 0:05:10]} Kh8 {[%emt 0:01:41]} 21. g5 {[%emt 0:00:39]} Qa5 {[%emt 0:08:23]} 22. Kb1 {[%emt 0:03:35]} Qb4 {[%emt 0:01:32]} 23. Be2 {[%emt 0:12:02]} Rae8 {[%emt 0:06:06]} 24. Ka1 {[%emt 0:04:25]} Qe7 {[%emt 0:05:25]} 25. Rg2 {[%emt 0:07:56]} Nb6 {[%emt 0:01:58]} 26. Nd1 {[%emt 0:04:09]} Qe4 {[%emt 0:03:35]} 27. Rhg1 {[%emt 0:00:10]} Re7 {[%emt 0:01:50]} 28. Qc3 {[%emt 0:09:07]} Rfe8 {[%emt 0:02:44]} 29. Bf3 {[%emt 0:01:43]} b4 {[%emt 0:01:17]} 30. Bxe4 {[%emt 0:00:43]} bxc3 {[%emt 0:00:02]} 31. Bf3 {[%emt 0:02:06]} cxb2+ {[%emt 0:04:25]} 32. Kxb2 {[%emt 0:00:11]} Nc4+ {[%emt 0:00:01]} 33. Kc1 {[%emt 0:01:34]} Ne3 {[%emt 0:01:26]} 34. Rb2 {[%emt 0:03:34]} Nxd1 {[%emt 0:00:45]} 35. Rxd1 {[%emt 0:00:42]} Re3 {[%emt 0:00:56]} 36. Rf1 {[%emt 0:00:16]} a5 {[%emt 0:02:38]} 37. Rb6 {[%emt 0:02:55]} Re1+ {[%emt 0:02:12]} 38. Rxe1 {[%emt 0:00:02]} Rxe1+ {[%emt 0:00:05]} 39. Kd2 {[%emt 0:01:10]} Rf1 {[%emt 0:00:02]} 40. Ke3 {[%emt 0:01:18]} Re1+ {[%emt 0:01:46]} 41. Kd2 {[%emt 0:00:34]} Be8 {[%emt 0:01:04]} 42. Be2 {[%emt 0:02:55]} Kg7 {[%emt 0:00:33]} 43. Rb7+ {[%emt 0:00:26]} Kg8 {[%emt 0:00:39]} 44. Rb8 {[%emt 0:00:23]} Kf8 {[%emt 0:00:19]} 45. Bh5 {[%emt 0:00:08]} Bf2 {[%emt 0:00:41]} 46. Bg1 {[%emt 0:02:20]} Rxg1 {[%emt 0:00:05]} 47. Bxe8 {[%emt 0:00:11]} Bxd4 {[%emt 0:00:36]} 48. Bxc6+ {[%emt 0:00:32]} Ke7 {[%emt 0:00:43]} 49. Rb5 {[%emt 0:01:22]} Rg3 {[%emt 0:00:29]} 50. Rxd5 {[%emt 0:00:45]} Be3+ {[%emt 0:00:08]} 51. Ke2 {[%emt 0:00:26]} Bxf4 {[%emt 0:00:10]} 52. h4 {[%emt 0:00:34]} Re3+ {[%emt 0:00:58]} 53. Kf2 {[%emt 0:00:14]} Rc3 {[%emt 0:00:27]} 1/2-1/2

[Event "Haiwan Cup New Star 2019"]
[Site "Shanghai"]
[Date "2019.09.08"]
[Round "5.3"]
[White "Bai, Jinshi"]
[Black "Khanin, Semen"]
[Result "1-0"]
[ECO "D92"]
[WhiteElo "2591"]
[BlackElo "2503"]
[Annotator "ChessBase"]
[PlyCount "145"]
[EventDate "2019.09.04"]
[EventType "tourn"]
[EventCountry "CHN"]
[SourceTitle "playchess.com"]
[Source "ChessBase"]
[SourceQuality "1"]
[TimeControl "5400+30"]

1. d4 {[%emt 0:00:00]} Nf6 {[%emt 0:00:00]} 2. c4 {[%emt 0:00:00]} g6 {[%emt 0:00:00]} 3. Nc3 {[%emt 0:00:00]} d5 {[%emt 0:00:00]} 4. Nf3 {[%emt 0:02:04]} Bg7 {[%emt 0:00:00]} 5. Bf4 {[%emt 0:00:06]} O-O {[%emt 0:02:59]} 6. Rc1 {[%emt 0:00:09]} dxc4 {[%emt 0:04:56]} 7. e4 {[%emt 0:04:42]} c5 {[%emt 0:03:02]} 8. dxc5 {[%emt 0:02:23]} Qa5 {[%emt 0:04:32]} 9. Nd2 {[%emt 0:13:06]} Be6 {[%emt 0:18:42]} 10. Bxc4 {[%emt 0:15:00]} Bxc4 {[%emt 0:00:42]} 11. Nxc4 {[%emt 0:00:05]} Qxc5 {[%emt 0:00:17]} 12. Nd2 {[%emt 0:03:11]} Nc6 {[%emt 0:04:31]} 13. O-O {[%emt 0:00:51]} Rad8 {[%emt 0:08:58]} 14. Nb3 {[%emt 0:10:05]} Qh5 {[%emt 0:16:37]} 15. Qxh5 {[%emt 0:03:13]} Nxh5 {[%emt 0:00:06]} 16. Be3 {[%emt 0:00:08]} Nb4 {[%emt 0:08:44]} 17. Bc5 {[%emt 0:15:55]} Nd3 {[%emt 0:00:11]} 18. Bxe7 {[%emt 0:00:04]} Nxc1 {[%emt 0:00:11]} 19. Rxc1 {[%emt 0:00:35]} Nf4 {[%emt 0:02:13]} 20. Bxd8 {[%emt 0:04:00]} Bxc3 {[%emt 0:03:14]} 21. Rd1 {[%emt 0:00:06]} Bxb2 {[%emt 0:00:34]} 22. Rd7 {[%emt 0:01:35]} f5 {[%emt 0:07:29]} 23. g3 {[%emt 0:05:23]} Ne6 {[%emt 0:02:09]} 24. Be7 {[%emt 0:00:04]} Rf7 {[%emt 0:00:21]} 25. Rxb7 {[%emt 0:03:20]} fxe4 {[%emt 0:01:56]} 26. Rxa7 {[%emt 0:01:30]} Rf5 {[%emt 0:01:59]} 27. Ra4 {[%emt 0:08:08]} Kf7 {[%emt 0:00:30]} 28. Ra7 {[%emt 0:00:05]} Kg8 {[%emt 0:00:26]} 29. Ra5 {[%emt 0:00:14]} Rf7 {[%emt 0:01:22]} 30. Ra8+ {[%emt 0:02:18]} Kg7 {[%emt 0:00:04]} 31. Ra7 {[%emt 0:00:26]} Ba3 {[%emt 0:02:46]} 32. Rxa3 {[%emt 0:00:05]} Rxe7 {[%emt 0:00:02]} 33. h4 {[%emt 0:03:04]} Kf6 {[%emt 0:00:11]} 34. Kf1 {[%emt 0:00:37]} Rc7 {[%emt 0:00:40]} 35. Ke2 {[%emt 0:02:02]} Rc3 {[%emt 0:00:59]} 36. Ra4 {[%emt 0:01:01]} Ke5 {[%emt 0:01:24]} 37. Ra5+ {[%emt 0:00:03]} Kd6 {[%emt 0:01:14]} 38. Ra7 {[%emt 0:02:38]} Ke5 {[%emt 0:00:46]} 39. Ra5+ {[%emt 0:00:23]} Kd6 {[%emt 0:00:03]} 40. Nd2 {[%emt 0:00:40]} Nd4+ {[%emt 0:00:11]} 41. Kf1 {[%emt 0:00:04]} Rc1+ {[%emt 0:00:16]} 42. Kg2 {[%emt 0:00:03]} Re1 {[%emt 0:00:10]} 43. Nc4+ {[%emt 0:01:07]} Ke6 {[%emt 0:00:28]} 44. Ra6+ {[%emt 0:00:23]} Kd5 {[%emt 0:00:45]} 45. Ne3+ {[%emt 0:00:04]} Ke5 {[%emt 0:00:05]} 46. Ng4+ {[%emt 0:00:48]} Kd5 {[%emt 0:02:24]} 47. Ne3+ {[%emt 0:00:14]} Kc5 {[%emt 0:02:35]} 48. Ra5+ {[%emt 0:00:09]} Kb4 {[%emt 0:00:37]} 49. Re5 {[%emt 0:01:40]} Rg1+ {[%emt 0:00:03]} 50. Kh3 {[%emt 0:00:04]} Kc3 {[%emt 0:01:13]} 51. Rxe4 {[%emt 0:00:17]} Kd3 {[%emt 0:00:15]} 52. Rf4 {[%emt 0:00:56]} h5 {[%emt 0:01:05]} 53. Kh2 {[%emt 0:00:16]} Rb1 {[%emt 0:00:06]} 54. Rf6 {[%emt 0:00:48]} Ra1 {[%emt 0:01:10]} 55. Kg2 {[%emt 0:00:29]} Rxa2 {[%emt 0:00:21]} 56. Rxg6 {[%emt 0:00:04]} Ke4 {[%emt 0:00:19]} 57. Rf6 {[%emt 0:00:35]} Ra5 {[%emt 0:00:45]} 58. Rf4+ {[%emt 0:00:15]} Kd3 {[%emt 0:00:03]} 59. Rf8 {[%emt 0:00:03]} Ke4 {[%emt 0:00:26]} 60. Re8+ {[%emt 0:00:21]} Kd3 {[%emt 0:00:06]} 61. Rd8 {[%emt 0:00:08]} Ke4 {[%emt 0:00:23]} 62. Nc4 {[%emt 0:00:13]} Ra2 {[%emt 0:00:17]} 63. Nd6+ {[%emt 0:00:38]} Ke5 {[%emt 0:00:16]} 64. Nf7+ {[%emt 0:00:04]} Ke4 {[%emt 0:00:12]} 65. Ng5+ {[%emt 0:00:13]} Ke5 {[%emt 0:00:06]} 66. Nf3+ {[%emt 0:00:41]} Nxf3 {[%emt 0:00:05]} 67. Kxf3 {[%emt 0:00:02]} Ra3+ {[%emt 0:00:04]} 68. Kg2 {[%emt 0:00:03]} Kf6 {[%emt 0:00:13]} 69. Rg8 {[%emt 0:00:04]} Ra7 {[%emt 0:00:34]} 70. Rg5 {[%emt 0:00:04]} Rh7 {[%emt 0:00:03]} 71. Kf3 {[%emt 0:00:03]} Rh8 {[%emt 0:00:04]} 72. Kf4 {[%emt 0:00:04]} Rf8 {[%emt 0:00:49]} 73. Rf5+ {[%emt 0:00:05]} 1-0